fUSD/lending_fUSD_20251118
["ID","MTS","AMOUNT","RATE_DAILY","PERIOD"]
[394295712,1763425751999,500.0,0.00016973,2]
[394295713,1763425752213,500.0,0.00016973,2]
[394295714,1763425752257,500.0,0.00016973,2]
[394295715,1763425752297,500.0,0.00016973,2]
[394295716,1763425752353,507.32409942,0.00016973,2]
[394295717,1763425752383,531.85620126,0.00016973,2]
[394295718,1763425752471,195.83227672,0.00016973,2]
[394295719,1763425752496,304.16772328,0.00016973,2]
[394295720,1763425752990,500.0,0.00016973,2]
[394295756,1763425800830,169.32579706,0.000169,2]
[394295757,1763425801535,1200.0,0.00016999,2]
[394295758,1763425801713,300.0,0.00016999,2]
[394295759,1763425801813,550.0,0.00016999,2]
[394295760,1763425801954,300.0,0.00016999,2]
[394295761,1763425803422,1678.09914957,0.00016973,2]
[394295762,1763425804296,500.0,0.00016973,2]
[394295763,1763425818502,172.33683286,0.0001699,2]
[394295765,1763425823714,500.0,0.00016999,2]
[394295766,1763425823757,500.0,0.00016999,2]
[394295767,1763425823797,500.0,0.00016999,2]
[394295768,1763425823845,500.0,0.00016999,2]
[394295769,1763425823887,500.0,0.00016999,2]
[394295770,1763425823969,500.0,0.00016999,2]
[394295771,1763425824011,500.0,0.00016999,2]
[394295772,1763425824054,500.0,0.00016999,2]
[394295773,1763425824094,500.0,0.00016999,2]
[394295774,1763425824156,500.0,0.00016999,2]
[394295775,1763425824193,500.0,0.00016999,2]
[394295776,1763425824240,500.0,0.00016999,2]
[394295777,1763425824297,500.0,0.00016999,2]
[394295778,1763425824412,500.0,0.00016999,2]
[394295779,1763425824452,500.0,0.00016999,2]
[394295780,1763425824503,500.0,0.00016999,2]
[394295781,1763425824541,500.0,0.00016999,2]
[394295782,1763425824624,500.0,0.00016999,2]
[394295783,1763425824683,500.0,0.00016999,2]
[394295784,1763425824723,327.67316714,0.00016999,2]
[394295785,1763425824757,172.32683286,0.00016999,2]
[394295786,1763425824794,500.0,0.00016999,2]
[394295787,1763425824837,500.0,0.00016999,2]
[394295788,1763425824875,500.0,0.00016999,2]
[394295789,1763425824918,500.0,0.00016999,2]
[394295790,1763425824972,385.55300087,0.00016999,2]
[394295791,1763425825064,500.0,0.00016999,2]
[394295792,1763425825118,500.0,0.00016999,2]
[394295793,1763425830493,633.95979613,0.000169,2]
[394295802,1763425831577,-127525.63987894,0.00017,2]
[394295803,1763425831643,-2771.65062689,0.00017,2]
[394295804,1763425831657,-98387.48367672,0.00017,2]
[394295805,1763425831668,-672.80486097,0.00017,2]
[394295806,1763425831782,-89834.6276411,0.00017,2]
[394295807,1763425831860,-504.83378329,0.00017,2]
[394295810,1763425834020,-300.0,0.00017,2]
[394295811,1763425834116,-163.34160733,0.00017,2]
[394295812,1763425834202,-163.34160733,0.00017,2]
[394295813,1763425834328,-695.0,0.00017,2]
[394295814,1763425834431,-163.34160733,0.00017,2]
[394295818,1763425837164,500.0,0.00016999,2]
[394295819,1763425837210,500.0,0.00016999,2]
[394295820,1763425837247,500.0,0.00016999,2]
[394295821,1763425837287,500.0,0.00016999,2]
[394295822,1763425837326,500.0,0.00016999,2]
[394295823,1763425837362,500.0,0.00016999,2]
[394295824,1763425837406,500.0,0.00016999,2]
[394295825,1763425837447,350.0,0.00016999,2]
[394295829,1763425837532,500.0,0.00016999,2]
[394295834,1763425837587,-275.418,0.00017,2]
[394295835,1763425837599,-253.4450449,0.00017,2]
[394295836,1763425837635,500.0,0.00016999,2]
[394295837,1763425837663,-4562.8984783,0.00017,2]
[394295838,1763425837695,500.0,0.00016999,2]
[394295839,1763425837754,458.17037014,0.00016999,2]
[394295840,1763425837785,41.82962986,0.00016999,2]
[394295841,1763425837805,-8351.41654929,0.00017,2]
[394295934,1763425839625,-607.49999996,0.00017,2]
[394295935,1763425839874,-898987.97497314,0.00017,2]
[394295936,1763425839884,-256.0,0.00017,2]
[394295937,1763425839894,-393.47916949,0.00017009,2]
[394295938,1763425839904,-195.0,0.00017018,2]
[394295939,1763425839913,-633.95979611,0.00017434,2]
[394295940,1763425839923,-293.2045689,0.00017521,2]
[394295941,1763425839934,-1000.0,0.00017521,2]
[394295942,1763425839944,-911.46240952,0.00017521,2]
[394295943,1763425839953,-500.0,0.00017521,2]
[394295944,1763425839963,-618.79121709,0.00017521,2]
[394295945,1763425839972,-1000.0,0.00017521,2]
[394295946,1763425839982,-1000.0,0.000177,2]
[394295947,1763425839991,-150.0,0.00017851,2]
[394295948,1763425840002,-172.89626965,0.00017869,2]
[394295949,1763425840013,-500.0,0.000179,6]
[394295950,1763425840022,-172.89626963,0.00017919,2]
[394295951,1763425840032,-186.87868101,0.00017968,2]
[394295952,1763425840043,-169.68610358,0.00017969,2]
[394295953,1763425840053,-194.55434229,0.00017969,2]
[394295954,1763425840063,-172.89626963,0.00017969,2]
[394295956,1763425840074,-565.38710931,0.00017969,2]
[394295958,1763425840084,-921.0,0.00017972,2]
[394295959,1763425840094,-504.83378329,0.00017973,2]
[394295960,1763425840104,-500.0,0.00017973,2]
[394295961,1763425840113,-228.14650797,0.00017973,2]
[394295962,1763425840122,-500.0,0.00017973,2]
[394295963,1763425840132,-500.0,0.00017973,2]
[394295964,1763425840141,-500.0,0.00017973,2]
[394295965,1763425840150,-500.0,0.00017973,2]
[394295966,1763425840159,-500.0,0.00017973,2]
[394295967,1763425840168,-171.82088036,0.00017973,2]
[394295968,1763425840178,-498.59718969,0.00017973,2]
[394295969,1763425840188,-500.0,0.00017973,2]
[394295970,1763425840197,-500.0,0.00017973,2]
[394295971,1763425840206,-500.0,0.00017999,2]
[394295972,1763425840217,-500.0,0.00017999,2]
[394295973,1763425840226,-500.0,0.00017999,2]
[394295974,1763425840236,-203.17982373,0.00017999,2]
[394295975,1763425840245,-1082676.6477878,0.00018,2]
[394295976,1763425840255,-1500.0,0.00018068,2]
[394295977,1763425840265,-1500.0,0.00018068,2]
[394295978,1763425840275,-935.0,0.00018104,2]
[394295979,1763425840285,-1305.74,0.00018365,2]
[394295980,1763425840294,-500.0,0.00018521,2]
[394295981,1763425840303,-500.0,0.00018521,2]
[394295982,1763425840313,-1000.0,0.00018521,2]
[394295983,1763425840323,-1093.30755412,0.00018521,2]
[394295984,1763425840332,-420.0,0.00018567,2]
[394295985,1763425840341,-420.0,0.00018567,2]
[394295986,1763425840351,-2000.0,0.00018616,2]
[394295987,1763425840361,-672.80486097,0.00018616,2]
[394295988,1763425840370,-1680.0,0.00018659,2]
[394295989,1763425840379,-2500.0,0.000187,2]
[394295990,1763425840389,-342.97092283,0.000187,2]
[394295991,1763425840399,-250.0,0.000187,2]
[394295992,1763425840408,-195.0,0.000187,2]
[394295993,1763425840418,-250.0,0.000187,2]
[394295994,1763425840426,-195.0,0.000187,2]
[394295995,1763425840436,-151.2,0.000188,2]
[394295996,1763425840445,-1500.0,0.00019068,2]
[394295997,1763425840454,-300.13979988,0.00019164,2]
[394295998,1763425840463,-199.0,0.00019277,2]
[394295999,1763425840473,-4918.72902076,0.00019577,2]
[394296000,1763425840482,-2000.0,0.00019616,2]
[394296001,1763425840491,-150.0,0.0001989,2]
[394296002,1763425840501,-1000.0,0.000199,7]
[394296003,1763425840511,-150.0,0.00019918,2]
[394296004,1763425840520,-500.18826948,0.00019973,2]
[394296005,1763425840529,-162.67023792,0.00019973,2]
[394296006,1763425840539,-48634.0,0.0002,7]
[394296007,1763425840548,-403.67238193,0.0002,2]
[394296008,1763425840558,-500.0,0.0002,2]
[394296009,1763425840567,-501.91245929,0.0002,2]
[394296010,1763425840577,-240.06689584,0.00020164,2]
[394296011,1763425840586,-602.52,0.00020187,2]
[394296012,1763425840596,-587.0,0.00020279,2]
[394296013,1763425840606,-587.0,0.00020279,2]
[394296014,1763425840624,-2351.0,0.00020481,2]
[394296015,1763425840634,-151.0,0.00020536,2]
[394296016,1763425840643,-212.16263826,0.00020536,2]
[394296017,1763425840653,-1009.78090184,0.00020548,2]
[394296018,1763425840664,-565.38710924,0.00020592,2]
[394296019,1763425840674,-1000.0,0.00020704,2]
[394296020,1763425840683,-1000.0,0.00020704,2]
[394296021,1763425840692,-6853.56964993,0.00022,15]
[394296022,1763425840703,-296.0,0.00022149,2]
[394296023,1763425840712,-823.0,0.00022149,2]
[394296024,1763425840722,-4918.72902076,0.00022255,2]
[394296025,1763425840733,-3292.0,0.00022481,2]
[394296026,1763425840742,-479.1746172,0.00023162,2]
[394296027,1763425840751,-565.38710924,0.00023215,2]
[394296028,1763425840762,-280.0,0.00024192,2]
[394296029,1763425840772,-4609.0,0.00024676,2]
[394296030,1763425840781,-415092.105211,0.000248,3]
[394296031,1763425840791,-151.0,0.000248,7]
[394296032,1763425840800,-202.852992,0.000248,7]
[394296033,1763425840810,-1211.494162,0.000248,7]
[394296034,1763425840819,-202.852992,0.000248,7]
[394296035,1763425840828,-1211.494162,0.000248,7]
[394296036,1763425840838,-202.852992,0.000248,7]
[394296037,1763425840848,-1211.494162,0.000248,7]
[394296038,1763425840857,-202.852992,0.000248,7]
[394296039,1763425840866,-1211.494162,0.000248,7]
[394296040,1763425840875,-151.0,0.000248,7]
[394296041,1763425840885,-151.0,0.000248,7]
[394296042,1763425840894,-151.0,0.000248,7]
[394296043,1763425840903,-151.0,0.000248,7]
[394296044,1763425840914,-151.0,0.000248,7]
[394296045,1763425840924,-151.0,0.000248,7]
[394296046,1763425840933,-151.0,0.000248,7]
[394296047,1763425840942,-151.0,0.000248,7]
[394296048,1763425840952,-151.0,0.000248,7]
[394296049,1763425840962,-151.0,0.000248,7]
[394296050,1763425840971,-151.0,0.000248,7]
[394296051,1763425840981,-151.0,0.000248,7]
[394296052,1763425840991,-151.0,0.000248,7]
[394296053,1763425841000,-176.564106,0.000248,7]
[394296054,1763425841011,-152.548501,0.000248,7]
[394296055,1763425841020,-151.0,0.000248,7]
[394296056,1763425841029,-151.0,0.000248,7]
[394296057,1763425841039,-151.0,0.000248,7]
[394296058,1763425841047,-151.0,0.000248,7]
[394296059,1763425841057,-151.830752,0.000248,7]
[394296060,1763425841067,-151.0,0.000248,7]
[394296061,1763425841077,-151.0,0.000248,7]
[394296062,1763425841087,-151.0,0.000248,7]
[394296063,1763425841097,-151.0,0.000248,7]
[394296064,1763425841110,-375.169401,0.000248,7]
[394296065,1763425841119,-4703.16,0.000248,7]
[394296066,1763425841128,-151.0,0.000248,7]
[394296067,1763425841137,-375.169401,0.000248,7]
[394296068,1763425841146,-151.0,0.000248,7]
[394296069,1763425841155,-375.169401,0.000248,7]
[394296070,1763425841164,-151.0,0.000248,7]
[394296071,1763425841174,-151.0,0.000248,7]
[394296072,1763425841183,-375.169401,0.000248,7]
[394296073,1763425841192,-151.0,0.000248,7]
[394296074,1763425841202,-151.0,0.000248,7]
[394296075,1763425841211,-151.0,0.000248,7]
[394296076,1763425841221,-213.013981,0.000248,7]
[394296077,1763425841230,-151.0,0.000248,7]
[394296078,1763425841240,-151.0,0.000248,7]
[394296079,1763425841250,-151.0,0.000248,7]
[394296080,1763425841261,-188.47141,0.000248,7]
[394296081,1763425841270,-151.0,0.000248,7]
[394296082,1763425841279,-151.0,0.000248,7]
[394296083,1763425841289,-188.47141,0.000248,7]
[394296084,1763425841300,-500.0,0.0002485,2]
[394296085,1763425841309,-500.0,0.0002485,2]
[394296086,1763425841318,-309.66167998,0.0002485,2]
[394296087,1763425841327,-500.0,0.0002485,2]
[394296088,1763425841337,-500.0,0.0002485,2]
[394296089,1763425841346,-500.0,0.0002485,2]
[394296090,1763425841356,-583355.018462,0.000249,3]
[394296091,1763425841365,-151.0,0.000249,7]
[394296092,1763425841374,-202.852992,0.000249,7]
[394296093,1763425841383,-1211.494162,0.000249,7]
[394296094,1763425841393,-202.852992,0.000249,7]
[394296095,1763425841402,-1211.494162,0.000249,7]
[394296096,1763425841413,-202.852992,0.000249,7]
[394296097,1763425841422,-1211.494162,0.000249,7]
[394296098,1763425841431,-202.852992,0.000249,7]
[394296099,1763425841441,-1211.494162,0.000249,7]
[394296100,1763425841450,-151.0,0.000249,7]
[394296101,1763425841459,-151.0,0.000249,7]
[394296102,1763425841469,-151.0,0.000249,7]
[394296103,1763425841479,-151.0,0.000249,7]
[394296104,1763425841490,-151.0,0.000249,7]
[394296105,1763425841500,-151.0,0.000249,7]
[394296106,1763425841512,-151.0,0.000249,7]
[394296107,1763425841521,-151.0,0.000249,7]
[394296108,1763425841532,-151.0,0.000249,7]
[394296109,1763425841541,-223.79148,0.000249,7]
[394296110,1763425841551,-151.0,0.000249,7]
[394296111,1763425841562,-151.0,0.000249,7]
[394296112,1763425841571,-151.0,0.000249,7]
[394296113,1763425841581,-151.0,0.000249,7]
[394296114,1763425841590,-151.0,0.000249,7]
[394296115,1763425841601,-151.0,0.000249,7]
[394296116,1763425841611,-151.0,0.000249,7]
[394296117,1763425841621,-151.0,0.000249,7]
[394296118,1763425841631,-157.495019,0.000249,7]
[394296119,1763425841641,-151.0,0.000249,7]
[394296120,1763425841651,-375.169401,0.000249,7]
[394296121,1763425841664,-375.169401,0.000249,7]
[394296122,1763425841673,-151.0,0.000249,7]
[394296123,1763425841683,-375.169401,0.000249,7]
[394296124,1763425841694,-151.0,0.000249,7]
[394296125,1763425841705,-375.169401,0.000249,7]
[394296126,1763425841715,-151.0,0.000249,7]
[394296127,1763425841725,-151.0,0.000249,7]
[394296128,1763425841734,-151.0,0.000249,7]
[394296129,1763425841744,-151.0,0.000249,7]
[394296130,1763425841754,-151.0,0.000249,7]
[394296131,1763425841763,-188.47141,0.000249,7]
[394296132,1763425841773,-151.0,0.000249,7]
[394296133,1763425841783,-4918.72902076,0.00024932,2]
[394296134,1763425841793,-150.99,0.0002498,2]
[394296135,1763425841803,-762.73308663,0.00025108,2]
[394296136,1763425841813,-565.38710924,0.00025838,2]
[394296137,1763425841822,-1000.0,0.00026097,30]
[394296138,1763425841832,-239.859,0.00026097,30]
[394296139,1763425841841,-602.52,0.00026676,2]
[394296140,1763425841851,-1086.0,0.00027086,2]
[394296141,1763425841860,-4918.72902076,0.00027609,2]
[394296142,1763425841870,-151.31,0.000277,2]
[394296143,1763425841880,-10093.04,0.00028203,2]
[394296144,1763425841890,-278.25,0.000283,7]
[394296145,1763425841900,-196.24,0.000283,7]
[394296146,1763425841909,-565.38710924,0.00028461,2]
[394296147,1763425841919,-186.87868099,0.00029772,2]
[394296148,1763425841929,-4918.72902076,0.00030287,2]
[394296149,1763425841938,-168.0,0.00030556,2]
[394296150,1763425841948,-1500.0,0.00030631,120]
[394296151,1763425841958,-8885.0,0.0003084,2]
[394296152,1763425841967,-1207.999998,0.00031,2]
[394296153,1763425841978,-4703.16,0.00031,7]
[394296154,1763425841988,-565.38710924,0.00031083,2]
[394296155,1763425841998,-468.27671938,0.00032,7]
[394296156,1763425842008,-29074.18637905,0.00032,120]
[394296157,1763425842018,-1000.0,0.00032095,2]
[394296158,1763425842028,-168.0,0.00032272,2]
[394296159,1763425842037,-168.0,0.00032342,2]
[394296160,1763425842047,-168.0,0.00032388,2]
[394296161,1763425842056,-4918.72902076,0.00032964,2]
[394296162,1763425842066,-602.52,0.00033165,2]
[394296163,1763425842076,-565.38710924,0.00033706,2]
[394296164,1763425842087,-151.31,0.000338,2]
[394296165,1763425842098,-1346.446,0.00034173,38]
[394296166,1763425842107,-173.407,0.00034173,38]
[394296167,1763425842117,-330.67331999,0.0003419,2]
[394296168,1763425842127,-5695.0,0.00035393,5]
[394296169,1763425842136,-4918.72902076,0.00035641,2]
[394296170,1763425842146,-1000.0,0.00036107,2]
[394296171,1763425842156,-565.38710924,0.00036329,2]
[394296172,1763425842167,-826.858,0.00036792,2]
[394296173,1763425842177,-499.29,0.00036792,2]
[394296174,1763425842187,-5019.72765839,0.00037008,2]
[394296175,1763425842196,-150.0,0.00037504,7]
[394296176,1763425842206,-150.0,0.00037504,7]
[394296177,1763425842216,-150.0,0.00037504,7]
[394296178,1763425842226,-150.0,0.00037504,7]
[394296179,1763425842236,-150.0,0.00037504,7]
[394296180,1763425842246,-161.22185128,0.00037504,7]
[394296181,1763425842256,-150.0,0.00037504,7]
[394296182,1763425842267,-150.0,0.00037504,7]
[394296183,1763425842278,-11111.0,0.00038136,120]
[394296184,1763425842288,-4703.16,0.000382,14]
[394296185,1763425842297,-4918.72902076,0.00038319,2]
[394296186,1763425842308,-999.0,0.00038457,3]
[394296187,1763425842319,-150.0,0.00038546,7]
[394296188,1763425842329,-155.25,0.00038568,2]
[394296189,1763425842339,-150.0,0.00038893,7]
[394296190,1763425842349,-150.0,0.00038893,7]
[394296191,1763425842358,-565.38710924,0.00038952,2]
[394296192,1763425842369,-455.951,0.00039205,2]
[394296193,1763425842378,-1599.0,0.00039205,2]
[394296194,1763425842388,-196.24,0.000393,30]
[394296195,1763425842398,-1436.82216061,0.00039464,2]
[394296196,1763425842408,-150.0,0.00039588,7]
[394296197,1763425842418,-150.0,0.00039588,7]
[394296198,1763425842428,-150.0,0.00039588,7]
[394296199,1763425842438,-278.25,0.000396,14]
[394296200,1763425842448,-151.31,0.000396,30]
[394296203,1763425842458,-466.75,0.00039607,2]
[394296205,1763425842468,-602.52,0.00039654,2]
[394296206,1763425842478,-1500.0,0.000399,14]
[394296207,1763425842488,-1730.40712235,0.00039913,2]
[394296208,1763425842501,-222.26124738,0.00039932,2]
[394296209,1763425842512,-150.0,0.00039967,2]
[394296210,1763425842522,-150.0,0.00039967,120]
[394296212,1763425842532,-1442.48,0.00039982,2]
[394296214,1763425842542,-704.68,0.00039994,5]
[394296216,1763425842552,-341.41544,0.00039999,2]
[394296218,1763425842564,-2000.0,0.0004,60]
[394296219,1763425842574,-861.05,0.00040024,30]
[394296220,1763425842586,-2500.0,0.0004011,2]
[394296221,1763425842595,-1000.0,0.00040118,2]
[394296222,1763425842605,-1000.0,0.0004012,2]
[394296223,1763425842616,-206.289813,0.0004012,8]
[394296224,1763425842626,-152.26052409,0.00040173,14]
[394296225,1763425842635,-151.0,0.00040207,14]
[394296226,1763425842645,-155.385662,0.0004021,120]
[394296227,1763425842657,-151.0,0.0004021,120]
[394296228,1763425842682,-151.0,0.0004021,120]
[394296230,1763425842693,-151.0,0.0004021,120]
[394296233,1763425842703,-151.0,0.0004021,120]
[394296236,1763425842712,-151.0,0.0004021,120]
[394296238,1763425842722,-151.0,0.0004021,120]
[394296240,1763425842733,-151.0,0.0004021,120]
[394296242,1763425842743,-151.0,0.0004021,120]
[394296244,1763425842753,-164.043963,0.0004021,120]
[394296246,1763425842765,-151.0,0.0004021,120]
[394296248,1763425842776,-151.0,0.0004021,120]
[394296250,1763425842786,-151.0,0.0004021,120]
[394296252,1763425842796,-151.0,0.0004021,120]
[394296254,1763425842807,-151.570359,0.0004021,30]
[394296256,1763425842819,-819.152823,0.0004021,30]
[394296259,1763425842831,-151.0,0.0004021,120]
[394296261,1763425842842,-819.152823,0.0004021,30]
[394296263,1763425842852,-819.152823,0.0004021,30]
[394296265,1763425842863,-819.152823,0.0004021,30]
[394296267,1763425842873,-151.0,0.0004021,120]
[394296269,1763425842884,-151.0,0.0004021,120]
[394296270,1763425842904,-151.0,0.0004021,120]
[394296272,1763425842925,-204.569042,0.0004021,120]
[394296275,1763425842942,-151.0,0.0004021,120]
[394296276,1763425842953,-151.0,0.0004021,120]
[394296277,1763425842966,-151.0,0.0004021,120]
[394296278,1763425842978,-151.0,0.00040217,14]
[394296279,1763425842989,-500.0,0.00040218,2]
[394296280,1763425843002,-318.3772389,0.00040219,30]
[394296281,1763425843014,-500.0,0.00040219,2]
[394296282,1763425843025,-500.0,0.00040219,2]
[394296283,1763425843036,-500.0,0.00040219,2]
[394296284,1763425843048,-171998.16092746,0.0004022,2]
[394296285,1763425843076,-478.04638032,0.0004022,2]
[394296286,1763425843395,-633.95979611,0.00017968,2]
[394296287,1763425843404,-188.47141,0.000248,7]
[394296288,1763425843414,-151.0,0.000249,7]
[394296289,1763425843424,-188.47141,0.000249,7]
[394296290,1763425843434,-188.47141,0.000249,7]
[394296291,1763425843444,-768.51555986,0.0004022,2]
[394296292,1763425843456,-2170.09,0.0004022,2]
[394296293,1763425843473,-188.47141,0.000248,7]
[394296294,1763425843482,-24144.37123561,0.0004022,2]
[394296295,1763425843498,-438.15202411,0.0004022,2]
[394296311,1763425845762,-151.0,0.000248,7]
[394296312,1763425845773,-188.47141,0.000249,7]
[394296313,1763425845784,-587.189325,0.0004022,2]
[394296314,1763425845955,-6871.4,0.0004022,2]
[394296315,1763425846025,-552544.07454764,0.0004022,2]
[394296316,1763425846036,-151.0,0.0004022,120]
[394296317,1763425846047,-151.0,0.0004022,120]
[394296318,1763425846057,-151.0,0.0004022,120]
[394296319,1763425846067,-222.800767,0.0004022,120]
[394296320,1763425846077,-222.800767,0.0004022,120]
[394296321,1763425846087,-222.800767,0.0004022,120]
[394296322,1763425846097,-151.0,0.0004022,120]
[394296323,1763425846108,-222.800767,0.0004022,120]
[394296324,1763425846119,-151.0,0.0004022,120]
[394296325,1763425846129,-151.0,0.0004022,120]
[394296326,1763425846140,-151.0,0.0004022,120]
[394296327,1763425846150,-151.0,0.0004022,120]
[394296328,1763425846160,-153.20031,0.0004022,120]
[394296329,1763425846169,-151.0,0.0004022,120]
[394296330,1763425846179,-151.0,0.0004022,120]
[394296331,1763425846189,-151.0,0.0004022,120]
[394296332,1763425846198,-151.0,0.0004022,120]
[394296333,1763425846208,-151.0,0.0004022,120]
[394296334,1763425846218,-151.0,0.0004022,120]
[394296335,1763425846228,-151.0,0.0004022,120]
[394296336,1763425846239,-151.0,0.0004022,120]
[394296337,1763425846248,-151.0,0.0004022,120]
[394296338,1763425846258,-151.0,0.0004022,120]
[394296339,1763425846270,-151.0,0.0004022,120]
[394296340,1763425846281,-164.710463,0.0004022,120]
[394296341,1763425846291,-151.0,0.0004022,120]
[394296342,1763425846300,-151.0,0.0004022,120]
[394296343,1763425846310,-151.0,0.0004022,120]
[394296344,1763425846320,-151.0,0.0004022,120]
[394296345,1763425846330,-151.0,0.0004022,120]
[394296346,1763425846340,-151.0,0.0004022,120]
[394296347,1763425846350,-151.0,0.0004022,120]
[394296348,1763425846360,-151.0,0.0004022,60]
[394296349,1763425846370,-151.0,0.0004022,120]
[394296350,1763425846381,-151.0,0.0004022,120]
[394296351,1763425846392,-151.0,0.0004022,120]
[394296352,1763425846404,-151.0,0.0004022,120]
[394296353,1763425846414,-228.48764,0.0004022,120]
[394296354,1763425846424,-151.0,0.0004022,120]
[394296355,1763425846435,-151.0,0.0004022,120]
[394296356,1763425846446,-151.0,0.0004022,120]
[394296357,1763425846457,-151.0,0.0004022,120]
[394296358,1763425846467,-151.0,0.0004022,120]
[394296359,1763425846477,-151.0,0.0004022,120]
[394296360,1763425846487,-151.0,0.0004022,120]
[394296361,1763425846497,-151.0,0.0004022,120]
[394296362,1763425846507,-151.0,0.0004022,120]
[394296363,1763425846517,-151.0,0.0004022,120]
[394296364,1763425846528,-255.613005,0.0004022,120]
[394296365,1763425846538,-151.0,0.0004022,120]
[394296366,1763425846548,-151.0,0.0004022,120]
[394296367,1763425846558,-151.0,0.0004022,120]
[394296368,1763425846569,-151.0,0.0004022,120]
[394296369,1763425846580,-151.0,0.0004022,120]
[394296370,1763425846811,-151.0,0.0004022,120]
[394296371,1763425846832,-151.0,0.0004022,120]
[394296372,1763425846843,-151.0,0.0004022,120]
[394296373,1763425846852,-151.0,0.0004022,120]
[394296374,1763425846861,-819.152823,0.0004022,30]
[394296375,1763425846871,-151.0,0.0004022,120]
[394296376,1763425846880,-819.152823,0.0004022,30]
[394296377,1763425846889,-819.152823,0.0004022,30]
[394296378,1763425846899,-819.152823,0.0004022,30]
[394296379,1763425846908,-151.0,0.0004022,120]
[394296380,1763425846918,-151.0,0.0004022,120]
[394296381,1763425846927,-151.0,0.0004022,120]
[394296382,1763425846937,-151.0,0.0004022,120]
[394296383,1763425846947,-151.0,0.0004022,120]
[394296384,1763425846958,-151.0,0.0004022,120]
[394296385,1763425846967,-151.0,0.0004022,120]
[394296386,1763425846977,-202.852992,0.0004022,120]
[394296387,1763425846987,-1211.494162,0.0004022,120]
[394296388,1763425846996,-202.852992,0.0004022,120]
[394296389,1763425847006,-1211.494162,0.0004022,120]
[394296390,1763425847015,-202.852992,0.0004022,120]
[394296391,1763425847025,-1211.494162,0.0004022,120]
[394296392,1763425847034,-202.852992,0.0004022,120]
[394296393,1763425847044,-1211.494162,0.0004022,120]
[394296394,1763425847053,-151.0,0.0004022,120]
[394296395,1763425847062,-151.0,0.0004022,120]
[394296396,1763425847072,-151.0,0.0004022,120]
[394296397,1763425847081,-151.0,0.0004022,120]
[394296398,1763425847091,-151.0,0.0004022,120]
[394296399,1763425847100,-151.0,0.0004022,120]
[394296400,1763425847109,-151.0,0.0004022,120]
[394296401,1763425847118,-151.0,0.0004022,120]
[394296402,1763425847127,-151.0,0.0004022,120]
[394296403,1763425847136,-151.0,0.0004022,120]
[394296404,1763425847146,-219.273255,0.0004022,120]
[394296405,1763425847155,-151.0,0.0004022,120]
[394296406,1763425847165,-151.0,0.0004022,120]
[394296407,1763425847175,-151.0,0.0004022,120]
[394296408,1763425847187,-151.0,0.0004022,120]